Cogmind - Beta 16 @@@ ROGUE MODE // 2025.11.16 @ 10:28:37 Player: C0-2MO Result: Escaped! Performance ------------- Evolutions (9) 4500 Regions Visited (13) 2600 Robots Destroyed (0) 0 Value Destroyed (10) 10 Prototype IDs (2) 40 Alien Tech Used (0) 0 Bonus (43453) 43453 TOTAL SCORE: 50603 Bonus ------- Pacifist 10207 Entered DSFs 1000 Win 3000 Win Speed 29246 Cogmind --------- Core Integrity 1559/1600 Matter 118/300 Energy 100/100 System Corruption 0% Temperature Cool (2) Movement Flying (45) Location To Epsilon Eridani Parts ------- > --- POWER (2) -------- (None) > --- PROPULSION (12) -- Field Propulsion Drive > --- UTILITY (9) ------ Structural Scanner System Shield System Shield > --- WEAPON (2) ------- (None) > --- INVENTORY (5) ---- Advanced Coolant Injector Quantum Capacitor Peak State ------------ > --- POWER ------------ Enhanced Nuclear Core > --- PROPULSION ------- Field Propulsion Drive Field Propulsion Drive Impulse Thruster Array Impulse Thruster Array Impulse Thruster Array > --- UTILITY ---------- Structural Scanner Machine Analyzer Long-range Sensor Array Advanced Signal Interpreter System Shield > --- WEAPON ----------- Powered Hammer > --- INVENTORY -------- Advanced Coolant Injector Quantum Capacitor [Rating: 90] Favorites ----------- Power Enhanced Nuclear Core Power Core Enhanced Nuclear Core Propulsion Combat Gravmag System Hover Unit Combat Gravmag System Flight Unit Field Propulsion Drive Utility Structural Scanner Device Structural Scanner Processor Machine Analyzer Hackware System Shield Weapon Assault Rifle Ballistic Gun Assault Rifle Impact Weapon Powered Hammer Build | -11 -10 -9 -8 -7 -7 -7 -5 -5 -4 -3 -2 -2 -1 ------- Run | Yrd Mat Mat Mat Fac Sto Rec Fac DSF Fac Res Res DSF Acc Slots Evolved 18 | . . 2 2 2 . . 4 . 2 2 2 . 2 Power 1 | . . . . . . . 1 . . . . . . Propulsion 10 | . . 2 . 1 . . 1 . 1 2 2 . 1 Utility 7 | . . . 2 1 . . 2 . 1 . . . 1 Weapon . | . . . . . . . . . . . . . . Parts Attached 29 | 2 1 . . 3 . . 2 3 3 4 2 6 3 Power 1 | . . . . 1 . . . . . . . . . Engine . | . . . . . . . . . . . . . . Core 1 | . . . . 1 . . . . . . . . . Reactor . | . . . . . . . . . . . . . . Propulsion 12 | . . . . . . . . 3 1 1 . 6 1 Treads . | . . . . . . . . . . . . . . Leg . | . . . . . . . . . . . . . . Wheel . | . . . . . . . . . . . . . . Hover 3 | . . . . . . . . 3 . . . . . Flight 9 | . . . . . . . . . 1 1 . 6 1 Utility 13 | . 1 . . 2 . . 1 . 2 3 2 . 2 Device 7 | . 1 . . 1 . . . . 1 1 2 . 1 Storage . | . . . . . . . . . . . . . . Processor 3 | . . . . 1 . . . . 1 1 . . . Hackware 3 | . . . . . . . 1 . . 1 . . 1 Protection . | . . . . . . . . . . . . . . Artifact . | . . . . . . . . . . . . . . Weapon 3 | 2 . . . . . . 1 . . . . . . Energy Gun . | . . . . . . . . . . . . . . Energy Cannon . | . . . . . . . . . . . . . . Ballistic Gun 2 | 2 . . . . . . . . . . . . . Ballistic Cannon . | . . . . . . . . . . . . . . Launcher . | . . . . . . . . . . . . . . Special Weapon . | . . . . . . . . . . . . . . Impact Weapon 1 | . . . . . . . 1 . . . . . . Slashing Weapon . | . . . . . . . . . . . . . . Piercing Weapon . | . . . . . . . . . . . . . . Special Melee Weapon . | . . . . . . . . . . . . . . Unidentified Prototypes 2 | . . . . 1 . . . . 1 . . . . Parts Lost 17 | . . . 1 . 1 . . 1 3 . . 11 . Power 1 | . . . . . . . . . . . . 1 . Propulsion 9 | . . . . . . . . . 2 . . 7 . Utility 5 | . . . . . 1 . . 1 1 . . 2 . Weapon 2 | . . . 1 . . . . . . . . 1 . Highest Loss Streak 11 | . . . 1 . 1 . . 1 2 . . 11 . To Critical Strikes . | . . . . . . . . . . . . . . Average Backups 2 | . . 1 1 2 3 3 4 3 3 3 2 2 2 Power . | . . . . . 1 1 1 1 1 1 1 . . Propulsion . | . . . . . . . . . . . . . . Utility 1 | . . 1 1 1 2 2 3 2 1 2 1 2 2 Weapon . | . . . . . . . . . 1 . . . . Tool/Special . | . . . . . . . . . . . . . . Unused Backups 2 | . . . . . . 1 . . . . . . 1 Power . | . . . . . . . . . . . . . . Propulsion . | . . . . . . . . . . . . . . Utility 1 | . . . . . . . . . . . . . 1 Weapon 1 | . . . . . . 1 . . . . . . . Tool/Special . | . . . . . . . . . . . . . . Average Slot Usage (%) 18 | . 26 22 14 5 13 7 6 15 24 22 31 30 15 Hover 1 | . . . . . . . . 4 6 . . . . Flight 1 | . . . . . . . . . . 3 4 7 4 Device 4 | . 4 11 6 3 5 . . . 6 5 9 6 4 Processor 4 | . . . . 1 7 7 5 5 9 5 8 6 . Hackware 1 | . . . . . . . . 2 . 3 4 4 7 Ballistic Gun 2 | . 22 11 7 . . . . . . . . . . Peak Build Rating 90 | 2 2 2 2 5 4 4 10 22 30 29 43 90 27 Average Rating 14 | 1 1 2 1 1 3 3 4 12 21 23 31 45 15 On Entrance 8 | . 2 2 2 . 4 3 4 10 16 7 29 32 5 Avg Prop Armor Cover (%) 22 | . . . . . . . . 31 21 . . . . Naked Turns 15 | . . . 8 7 . . . . . . . . . Heaviest Build 14 | 3 3 3 3 1 1 . 3 3 1 5 7 14 11 Greatest Support 55 | 3 3 3 3 3 3 3 3 14 6 7 7 55 7 Greatest Overweight (x) 1 | . . . . . . . . . . . . . 1 Average Overweight (x) . | . . . . . . . . . . . . . . Largest Inventory Capacity 5 | 5 5 5 5 5 5 5 5 5 5 5 5 5 5 Average Capacity 5 | 5 5 5 5 5 5 5 5 5 5 5 5 5 5 Most Carried 5 | . 1 1 2 3 3 5 5 4 5 5 4 5 4 Average Carried 2 | . . 1 1 2 3 3 4 3 3 2 3 3 3 Final Capacity 5 | 5 5 5 5 5 5 5 5 5 5 5 5 5 5 Final Carried 5 | . 1 1 2 3 3 5 3 4 5 2 4 5 3 Class Distribution -------------------- 81% | Mutant 11% | Hacker-Mutant 6% | Scout Dominant Class ---------------- Mutant | -10/Materials Mutant | -9/Materials Mutant | -8/Materials Mutant | -7/Factory Mutant | -7/Storage Mutant | -7/Recycling Mutant | -5/Factory Mutant | -5/DSF Mutant | -4/Factory Scout | -3/Research Scout | -2/Research Mutant | -2/DSF Hacker-Mutant | -1/Access Resources | -11 -10 -9 -8 -7 -7 -7 -5 -5 -4 -3 -2 -2 -1 ----------- Run | Yrd Mat Mat Mat Fac Sto Rec Fac DSF Fac Res Res DSF Acc Matter Collected 273 | 176 44 . 5 20 . 5 . . 2 . . 21 . Remotely . | . . . . . . . . . . . . . . Salvage Created . | . . . . . . . . . . . . . . Parts . | . . . . . . . . . . . . . . Haulers Intercepted . | . . . . . . . . . . . . . . Recyclers Shooed . | . . . . . . . . . . . . . . Parts Field Recycled . | . . . . . . . . . . . . . . Retrieved Matter . | . . . . . . . . . . . . . . Parts Self-Destructed . | . . . . . . . . . . . . . . Prevented . | . . . . . . . . . . . . . . Parts Restored . | . . . . . . . . . . . . . . Kills | -11 -10 -9 -8 -7 -7 -7 -5 -5 -4 -3 -2 -2 -1 ------- Run | Yrd Mat Mat Mat Fac Sto Rec Fac DSF Fac Res Res DSF Acc Combat Hostiles Destroyed . | . . . . . . . . . . . . . . Classes Destroyed . | . . . . . . . . . . . . . . Best Kill Streak . | . . . . . . . . . . . . . . Combat Bots Only . | . . . . . . . . . . . . . . Max Kills in Single Turn . | . . . . . . . . . . . . . . Gunslinging . | . . . . . . . . . . . . . . Exploded . | . . . . . . . . . . . . . . Melee . | . . . . . . . . . . . . . . Uniques/NPCs Destroyed . | . . . . . . . . . . . . . . Combat | -11 -10 -9 -8 -7 -7 -7 -5 -5 -4 -3 -2 -2 -1 -------- Run | Yrd Mat Mat Mat Fac Sto Rec Fac DSF Fac Res Res DSF Acc Hostile Shots Fired 233 | . . 4 8 . 21 49 . 41 45 . . 56 9 Missed 96 | . . 1 3 . 10 26 . 16 17 . . 20 3 Hits 137 | . . 3 5 . 11 23 . 25 28 . . 36 6 Melee 41 | . . . . . . . . 3 15 . . 23 . Projectile 96 | . . 3 5 . 11 23 . 22 13 . . 13 6 AOE 6 | . . . . . . . . 1 3 . . 2 . Critical Strikes 16 | . . . 1 . . . . 1 3 . . 10 1 Part Disruptions 1 | . . . . . . . . 1 . . . . . Damage Taken 3740 | . . 42 272 . 96 286 . 580 889 . . 1461 114 Core 2570 | . . 29 185 . 69 286 . 427 689 . . 844 41 Absorbed by Shields 59 | . . . . . . . . 19 . . . 40 . Core Remaining (%) 74 | 100 100 92 66 . . 49 . 57 40 100 . 41 97 Volleys Fired . | . . . . . . . . . . . . . . Largest . | . . . . . . . . . . . . . . Hottest . | . . . . . . . . . . . . . . Shots Fired . | . . . . . . . . . . . . . . Gun . | . . . . . . . . . . . . . . Cannon . | . . . . . . . . . . . . . . Launcher . | . . . . . . . . . . . . . . Special . | . . . . . . . . . . . . . . Kinetic . | . . . . . . . . . . . . . . Thermal . | . . . . . . . . . . . . . . Explosive . | . . . . . . . . . . . . . . Electromagnetic . | . . . . . . . . . . . . . . Robot Hit Streak . | . . . . . . . . . . . . . . Robot Miss Streak . | . . . . . . . . . . . . . . Penetration Max . | . . . . . . . . . . . . . . Secondary Targets . | . . . . . . . . . . . . . . Shots Hit Robots . | . . . . . . . . . . . . . . Core Hits . | . . . . . . . . . . . . . . Critical Kills . | . . . . . . . . . . . . . . Critical Parts Destroyed . | . . . . . . . . . . . . . . Critical Strikes . | . . . . . . . . . . . . . . Melee Attacks 5 | . . . . . . . 2 . . 1 2 . . Impact 5 | . . . . . . . 2 . . 1 2 . . Slashing . | . . . . . . . . . . . . . . Piercing . | . . . . . . . . . . . . . . Sneak Attacks . | . . . . . . . . . . . . . . Combat Hostiles . | . . . . . . . . . . . . . . Follow-up Attacks . | . . . . . . . . . . . . . . Damage Inflicted . | . . . . . . . . . . . . . . Guns . | . . . . . . . . . . . . . . Cannons . | . . . . . . . . . . . . . . Explosions . | . . . . . . . . . . . . . . Melee . | . . . . . . . . . . . . . . Ramming . | . . . . . . . . . . . . . . Kinetic . | . . . . . . . . . . . . . . Thermal . | . . . . . . . . . . . . . . Explosive . | . . . . . . . . . . . . . . Electromagnetic . | . . . . . . . . . . . . . . Impact . | . . . . . . . . . . . . . . Slashing . | . . . . . . . . . . . . . . Piercing . | . . . . . . . . . . . . . . Highest Corruption 3 | . . . . . . . . . 1 . . 3 . Average Corruption 1 | . . . . . . . . . 1 . . 2 . Corruption Purged . | . . . . . . . . . . . . . . Corruption Blocked . | . . . . . . . . . . . . . . Effects 2 | . . . . . . . . . 1 . . 1 . Data Loss (minor) 2 | . . . . . . . . . 1 . . 1 . Overload Shots . | . . . . . . . . . . . . . . Overflow Damage . | . . . . . . . . . . . . . . Projectiles . | . . . . . . . . . . . . . . Explosions . | . . . . . . . . . . . . . . Melee . | . . . . . . . . . . . . . . Knockbacks . | . . . . . . . . . . . . . . Impact . | . . . . . . . . . . . . . . Kinetic . | . . . . . . . . . . . . . . Secondary . | . . . . . . . . . . . . . . Self-Inflicted Damage . | . . . . . . . . . . . . . . Shots . | . . . . . . . . . . . . . . Rammed . | . . . . . . . . . . . . . . Targets Rammed . | . . . . . . . . . . . . . . Kicked . | . . . . . . . . . . . . . . Crushed . | . . . . . . . . . . . . . . Highest Temperature . | . . . . . . . . . . . . . . Average Temperature . | . . . . . . . . . . . . . . Received Heat Transfer 176 | . . 9 . . 39 27 . 83 18 . . . . Siege Activations . | . . . . . . . . . . . . . . Martial Activations . | . . . . . . . . . . . . . . Shielding Activations . | . . . . . . . . . . . . . . Robots Disrupted . | . . . . . . . . . . . . . . Combat Hostiles . | . . . . . . . . . . . . . . Robots Corrupted . | . . . . . . . . . . . . . . Combat Hostiles . | . . . . . . . . . . . . . . Parts Fried . | . . . . . . . . . . . . . . Impact Corruptions . | . . . . . . . . . . . . . . Robots Melted . | . . . . . . . . . . . . . . Combat Hostiles . | . . . . . . . . . . . . . . Parts Melted . | . . . . . . . . . . . . . . Heat Transferred . | . . . . . . . . . . . . . . Parts Sabotaged . | . . . . . . . . . . . . . . Parts Stolen . | . . . . . . . . . . . . . . Parts Stripped . | . . . . . . . . . . . . . . Power Chain Reactions . | . . . . . . . . . . . . . . Alert | -11 -10 -9 -8 -7 -7 -7 -5 -5 -4 -3 -2 -2 -1 ------- Run | Yrd Mat Mat Mat Fac Sto Rec Fac DSF Fac Res Res DSF Acc Maximum Alert Level . | . . . . . . . . . . . . . . Low Security (%) 100 | 100 100 100 100 100 100 100 100 100 100 100 100 100 100 Level 1 . | . . . . . . . . . . . . . . Level 2 . | . . . . . . . . . . . . . . Level 3 . | . . . . . . . . . . . . . . Level 4 . | . . . . . . . . . . . . . . Level 5 . | . . . . . . . . . . . . . . High Security . | . . . . . . . . . . . . . . Max Security . | . . . . . . . . . . . . . . Peak Influence 99 | . 16 5 15 6 . 51 99 82 92 39 13 15 24 Initial 67 | . . . . 6 . . 66 67 37 34 10 8 . Average 27 | . 5 2 . 3 . 36 77 70 52 32 8 2 1 Influence Increases 451 | . 16 5 15 . . 71 100 15 150 15 11 15 38 Successful Hack 106 | . 16 5 . . . 11 31 . . . 5 . 38 Select Force Hacks 30 | . . . . . . 30 . . . . . . . Disable Machine 15 | . . . . . . . . . . 15 . . . Destroy Structure 10 | . . . . . . . 4 . . . 6 . . Advance Influence 50 | . . . . . . . 50 . . . . . . Partial Spotted 15 | . . . . . . . 15 . . . . . . Lose Combat Pursuer 225 | . . . 15 . . 30 . 15 150 . . 15 . Influence Decreases 427 | . 16 5 . 15 . 30 45 39 155 63 19 26 14 Entered New Map 143 | . . . . 9 . . 25 29 35 33 9 3 . Time Decay 221 | . 16 5 . 6 . 30 20 . 90 30 10 . 14 Lost Part 63 | . . . . . . . . 10 30 . . 23 . Squads Dispatched 9 | . . . 1 . . . . 1 5 . . 1 1 Investigation 4 | . . . 1 . . . . . 2 . . . 1 Extermination 1 | . . . . . . . . . 1 . . . . Reinforcement 4 | . . . . . . . . 1 2 . . 1 . Assault . | . . . . . . . . . . . . . . Garrison . | . . . . . . . . . . . . . . Intercept . | . . . . . . . . . . . . . . Searches Triggered . | . . . . . . . . . . . . . . Construction Impeded . | . . . . . . . . . . . . . . Haulers Reinforced . | . . . . . . . . . . . . . . Active Scanning Responses . | . . . . . . . . . . . . . . Cargo Convoy Interrupts . | . . . . . . . . . . . . . . Stealth | -11 -10 -9 -8 -7 -7 -7 -5 -5 -4 -3 -2 -2 -1 --------- Run | Yrd Mat Mat Mat Fac Sto Rec Fac DSF Fac Res Res DSF Acc Distress Signals 4 | . 1 . . . . . . . 3 . . . . Communications Jammed . | . . . . . . . . . . . . . . Distress Signals . | . . . . . . . . . . . . . . Times Spotted 59 | . 3 2 5 . 4 6 . 6 22 . . 7 4 Peak Tracking Total 14 | . 4 2 5 . 4 7 . 6 14 . . 6 4 Tactical Retreats 8 | . . . 1 . . 1 . 1 4 . . 1 . Traps | -11 -10 -9 -8 -7 -7 -7 -5 -5 -4 -3 -2 -2 -1 ------- Run | Yrd Mat Mat Mat Fac Sto Rec Fac DSF Fac Res Res DSF Acc Traps Triggered 5 | . . . 1 . . . . 1 . . . 3 . Indirectly . | . . . . . . . . . . . . . . Trap Hack Attempts . | . . . . . . . . . . . . . . Triggered . | . . . . . . . . . . . . . . Disarmed . | . . . . . . . . . . . . . . Reprogrammed . | . . . . . . . . . . . . . . Reused . | . . . . . . . . . . . . . . Traps Extracted . | . . . . . . . . . . . . . . Installed . | . . . . . . . . . . . . . . Triggered . | . . . . . . . . . . . . . . Machines | -11 -10 -9 -8 -7 -7 -7 -5 -5 -4 -3 -2 -2 -1 ---------- Run | Yrd Mat Mat Mat Fac Sto Rec Fac DSF Fac Res Res DSF Acc Machines Disabled 1 | . . . . . . . . . . 1 . . . Max in Single Turn 1 | . . . . . . . . . . 1 . . . Machines Repaired . | . . . . . . . . . . . . . . Machines Dismantled . | . . . . . . . . . . . . . . Machines Sabotaged . | . . . . . . . . . . . . . . Overloaded Fab Kills . | . . . . . . . . . . . . . . Hacking | -11 -10 -9 -8 -7 -7 -7 -5 -5 -4 -3 -2 -2 -1 --------- Run | Yrd Mat Mat Mat Fac Sto Rec Fac DSF Fac Res Res DSF Acc Machines Accessed 15 | . 3 1 . . . 2 2 . 2 . 1 . 4 Terminals 13 | . 3 1 . . . 1 2 . 2 . 1 . 3 Fabricators 1 | . . . . . . . . . . . . . 1 Repair Stations . | . . . . . . . . . . . . . . Recycling Units 1 | . . . . . . 1 . . . . . . . Scanalyzers . | . . . . . . . . . . . . . . Garrison Access . | . . . . . . . . . . . . . . Total Hacks 36 | . 10 2 . . . 7 3 . 4 . 1 . 9 Successful 18 | . 5 1 . . . 3 3 . 1 . 1 . 4 Failed 18 | . 5 1 . . . 4 . . 3 . . . 5 Catastrophic 3 | . 1 . . . . . . . 2 . . . . Database Lockouts . | . . . . . . . . . . . . . . Manual 23 | . 9 2 . . 1 2 1 . 4 . . . 4 Terminals 33 | . 10 2 . . . 6 3 . 4 . 1 . 7 Fabricators 2 | . . . . . . . . . . . . . 2 Repair Stations . | . . . . . . . . . . . . . . Recycling Units 1 | . . . . . . 1 . . . . . . . Scanalyzers . | . . . . . . . . . . . . . . Garrison Access . | . . . . . . . . . . . . . . Terminal Hacks 8 | . 3 . . . . 1 2 . . . 1 . 1 Open Door 1 | . . . . . . . . . . . . . 1 Open DSF 2 | . . . . . . . 1 . . . 1 . . Terminal Index 1 | . 1 . . . . . . . . . . . . Recycling Unit Index 1 | . . . . . . 1 . . . . . . . Zone Layout 3 | . 2 . . . . . 1 . . . . . . Fabricator Hacks 1 | . . . . . . . . . . . . . 1 Network Status 1 | . . . . . . . . . . . . . 1 Repair Station Hacks . | . . . . . . . . . . . . . . Recycling Unit Hacks . | . . . . . . . . . . . . . . Scanalyzer . | . . . . . . . . . . . . . . Garrison Access Hacks . | . . . . . . . . . . . . . . Unauthorized Hacks 9 | . 2 1 . . . 2 1 . 1 . . . 2 Terminals 8 | . 2 1 . . . 1 1 . 1 . . . 2 Botnet 8 | . 2 1 . . . 1 1 . 1 . . . 2 Fabricators . | . . . . . . . . . . . . . . Repair Stations . | . . . . . . . . . . . . . . Recycling Units 1 | . . . . . . 1 . . . . . . . Tunnel 1 | . . . . . . 1 . . . . . . . Scanalyzers . | . . . . . . . . . . . . . . Garrison Access . | . . . . . . . . . . . . . . Data Cores Recovered . | . . . . . . . . . . . . . . Used . | . . . . . . . . . . . . . . Hacking Detections 13 | . 3 1 . . . 1 2 . 2 . . . 4 Full Trace Events 3 | . . . . . . . . . 2 . . . 1 Feedback Events 1 | . . . . . . . . . 1 . . . . Corruption 1 | . . . . . . . . . 1 . . . . Feedback Blocked . | . . . . . . . . . . . . . . Robot Schematics Acquired . | . . . . . . . . . . . . . . Robots Built . | . . . . . . . . . . . . . . Authchips . | . . . . . . . . . . . . . . Time . | . . . . . . . . . . . . . . Total Robot Build Rating . | . . . . . . . . . . . . . . Part Schematics Acquired . | . . . . . . . . . . . . . . Parts Built . | . . . . . . . . . . . . . . Authchips . | . . . . . . . . . . . . . . Time . | . . . . . . . . . . . . . . Total Part Build Rating . | . . . . . . . . . . . . . . Part Studies Acquired . | . . . . . . . . . . . . . . Parts Repaired . | . . . . . . . . . . . . . . Time . | . . . . . . . . . . . . . . Parts Recycled . | . . . . . . . . . . . . . . Recycled Matter . | . . . . . . . . . . . . . . Retrieved Matter . | . . . . . . . . . . . . . . Retrieved Components . | . . . . . . . . . . . . . . Parts Scanalyzed . | . . . . . . . . . . . . . . Part Schematics Acquired . | . . . . . . . . . . . . . . Parts Damaged . | . . . . . . . . . . . . . . Bothacking | -11 -10 -9 -8 -7 -7 -7 -5 -5 -4 -3 -2 -2 -1 ------------ Run | Yrd Mat Mat Mat Fac Sto Rec Fac DSF Fac Res Res DSF Acc Used RIF Installer . | . . . . . . . . . . . . . . Robots Hacked . | . . . . . . . . . . . . . . Non-combat . | . . . . . . . . . . . . . . Combat . | . . . . . . . . . . . . . . Robot Hacks Applied . | . . . . . . . . . . . . . . Relay Couplers Released . | . . . . . . . . . . . . . . Fabnet Peak Effective % . | . . . . . . . . . . . . . . Robots Rewired . | . . . . . . . . . . . . . . Allies Hacked . | . . . . . . . . . . . . . . Hacks Repelled . | . . . . . . . . . . . . . . Allies | -11 -10 -9 -8 -7 -7 -7 -5 -5 -4 -3 -2 -2 -1 -------- Run | Yrd Mat Mat Mat Fac Sto Rec Fac DSF Fac Res Res DSF Acc Total Allies . | . . . . . . . . . . . . . . Largest Group . | . . . . . . . . . . . . . . Highest-Rated Group . | . . . . . . . . . . . . . . Highest-Rated Ally . | . . . . . . . . . . . . . . Total Orders 2 | . . . . . . . . . . . . . 2 EXPLORE 2 | . . . . . . . . . . . . . 2 Ally Attacks . | . . . . . . . . . . . . . . Total Damage . | . . . . . . . . . . . . . . Kills . | . . . . . . . . . . . . . . Allies Corrupted . | . . . . . . . . . . . . . . Allies Melted . | . . . . . . . . . . . . . . Intel | -11 -10 -9 -8 -7 -7 -7 -5 -5 -4 -3 -2 -2 -1 ------- Run | Yrd Mat Mat Mat Fac Sto Rec Fac DSF Fac Res Res DSF Acc Active Infowar (turns) 766 | . 27 41 49 21 34 60 51 61 198 53 36 28 107 Sensors 70 | . . . . . . . . . . 39 31 . . Structural 497 | . 27 41 49 21 17 . . . 165 40 30 . 107 Machine Analysis 503 | . . . . 8 34 60 51 61 198 27 36 28 . Robot Analysis Total . | . . . . . . . . . . . . . . Derelict Logs Recovered . | . . . . . . . . . . . . . . Drone Launches 2 | . . . . . . . . . . . . . 2 Drone Recoveries . | . . . . . . . . . . . . . . Exploration | -11 -10 -9 -8 -7 -7 -7 -5 -5 -4 -3 -2 -2 -1 ------------- Run | Yrd Mat Mat Mat Fac Sto Rec Fac DSF Fac Res Res DSF Acc Turns Passed 875 | 17 59 41 66 29 34 60 51 61 198 64 36 51 108 Spaces Moved 1636 | 28 111 82 130 47 68 113 87 85 388 131 65 86 215 Core 1155 | 28 111 82 130 47 68 113 87 84 363 12 . 30 . Treads . | . . . . . . . . . . . . . . Legs . | . . . . . . . . . . . . . . Wheels . | . . . . . . . . . . . . . . Hover 1 | . . . . . . . . 1 . . . . . Flight 480 | . . . . . . . . . 25 119 65 56 215 Fastest Speed 27 | 50 50 50 50 50 50 50 50 50 27 40 40 34 45 Average Speed 47 | 50 50 50 50 50 50 50 50 50 48 40 40 42 47 Slowest Speed 125 | 50 50 50 50 50 50 50 50 80 50 50 40 50 125 Overloaded Moves 11 | . . . . . . . . . 11 . . . . Propulsion Burnouts . | . . . . . . . . . . . . . . Robots Hopped 4 | . . . . . . . . . . . . 2 2 Potential Cave-ins . | . . . . . . . . . . . . . . Cave-ins Triggered . | . . . . . . . . . . . . . . Exploration Rate (%) 24 | 3 26 15 20 3 30 34 4 82 17 5 3 91 9 Regions Visited 13 Branch Regions 2 Pre-discovered Areas 1 | . . . . . . 1 . . . . . . . Known Exits Taken 4 | . . . . . . . 1 . 1 1 1 . . Unknown Exits Taken 7 | 1 1 1 1 1 1 1 . . . . . . . Scrap Searched . | . . . . . . . . . . . . . . Spaces Dug 4 | . . . . . . . 2 . . . 2 . . Terrain Destroyed 4 | . . . . . . . 2 . . . 2 . . Melee 4 | . . . . . . . 2 . . . 2 . . Projectile . | . . . . . . . . . . . . . . AOE . | . . . . . . . . . . . . . . Terrain Rammed . | . . . . . . . . . . . . . . Walls Destroyed . | . . . . . . . . . . . . . . Machines Disabled . | . . . . . . . . . . . . . . Actions | -11 -10 -9 -8 -7 -7 -7 -5 -5 -4 -3 -2 -2 -1 --------- Run | Yrd Mat Mat Mat Fac Sto Rec Fac DSF Fac Res Res DSF Acc Total 1692 | 29 113 81 130 51 67 116 90 101 395 137 70 94 218 Wait 3 | . . . . . . . . . 2 . . . 1 Move 1614 | 27 110 81 129 46 67 112 86 84 387 130 64 81 210 Hop 4 | . . . . . . . . . . . . 2 2 Pick Up 9 | . 1 . . 1 . 3 . . 2 . . 2 . Fast Attach 24 | 2 1 . . 2 . . . 3 3 3 2 6 2 Attach 10 | . . . . 1 . . 2 . 1 3 . 1 2 Detach 4 | . . . 1 1 . . . 1 . . 1 . . Swap . | . . . . . . . . . . . . . . Drop 4 | . 1 . . . . 1 . . . . 1 . 1 Fire . | . . . . . . . . . . . . . . Melee 5 | . . . . . . . 2 . . 1 2 . . Ram . | . . . . . . . . . . . . . . Kick . | . . . . . . . . . . . . . . Crush . | . . . . . . . . . . . . . . Escape Stasis 15 | . . . . . . . . 13 . . . 2 . Rewire . | . . . . . . . . . . . . . . Trap . | . . . . . . . . . . . . . . Miscellaneous . | . . . . . . . . . . . . . . Route ------- -11/Scrapyard -10/Materials -9/Materials -8/Materials -7/Factory -7/Storage -7/Recycling -5/Factory -5/DSF -4/Factory -3/Research -2/Research -2/DSF -1/Access To Epsilon Eridani History --------- Turn | Location | Event 2 | -11/Scrapyard | Met Revision 17 9 | -11/Scrapyard | Discovered new exit (range 15) 18 | -11/Scrapyard | Entered Materials 75 | -10/Materials | Discovered new exit (range 4) 77 | -10/Materials | Entered another Materials area 77 | -9/Materials | Evolved 2 slots: Propulsion x2 116 | -9/Materials | Discovered new exit (range 6) 118 | -9/Materials | Entered another Materials area 118 | -8/Materials | Evolved 2 slots: Utility x2 177 | -8/Materials | Discovered new exit (range 15) 184 | -8/Materials | Entered Factory 184 | -7/Factory | Evolved 2 slots: Propulsion x1, Utility x1 200 | -7/Factory | Discovered new exit (range 14) 213 | -7/Factory | Entered Storage 245 | -7/Storage | Used back door to open Recycling access 245 | -7/Storage | Discovered new exit (range 5) 247 | -7/Storage | Entered Recycling 302 | -7/Recycling | Discovered new exit (range 9) 303 | -7/Recycling | Core integrity fell below 50% 307 | -7/Recycling | Entered Factory 307 | -5/Factory | Evolved 4 slots: Power x1, Propulsion x1, Utility x2 308 | -5/Factory | Build established: Mutant 358 | -5/Factory | Identified exit to DSF 358 | -5/Factory | Entered DSF 384 | -5/DSF | Additional patrols routed to DSF 413 | -5/DSF | Discovered new exit (range 12) 419 | -5/DSF | Entered Factory 419 | -4/Factory | Evolved 2 slots: Propulsion x1, Utility x1 613 | -4/Factory | Core integrity fell below 50% 615 | -4/Factory | Discovered new exit (range 5) 617 | -4/Factory | Identified exit to Research 617 | -4/Factory | Entered Research 617 | -3/Research | Evolved 2 slots: Propulsion x2 676 | -3/Research | Discovered new exit (range 13) 681 | -3/Research | Identified exit to Research 681 | -3/Research | Entered another Research area 681 | -2/Research | Evolved 2 slots: Propulsion x2 688 | -2/Research | Found Quantum Capacitor 717 | -2/Research | Identified exit to DSF 717 | -2/Research | Entered DSF 736 | -2/DSF | Additional patrols routed to DSF 761 | -2/DSF | Discovered new exit (range 11) 762 | -2/DSF | Core integrity fell below 50% 768 | -2/DSF | Entered Access 768 | -1/Access | Evolved 2 slots: Propulsion x1, Utility x1 792 | -1/Access | Lost 11 parts (1p7n2u1w) 874 | -1/Access | Discovered new exit (range 5) 876 | *** | Escaped! Last Messages --------------- Querying network status... 3 records found: (50,36) - Loaded: Quantum Reactor (108,44) - Loaded: Enh. Hardcell Cannon (97,35) - Loaded: Biometal Heavy Treads 00859_ K-01 Serf cleans the Anti-Orbital Battery. 00864_ Connecting with Terminal... >>Trojan(Botnet) Trojan loaded successfully. Testing... Terminal linked with 1 system. Awaiting botnet instructions. 00864_ ALERT: Suspicious activity at Terminal A020. Dispatching Investigation squad. 00873_ Connecting with Terminal... >>Open(Door) Sealed Barrier opened. 00874_ The Access Shell folds into the floor. 00874_ EXIT=FOUND Map ----- +----------------------------------------------------+ | ????## """"""""#### """"" ##?####### | | ????## """"""""#### """""""" !]########## | | ????##! """"" #### """""""" = #########? | | ????## / """"" | | ????## #### # | | ????## #### # | | ??##########/######### # | | ####### ######## # """#######+#### | | T" ##????############"" F""### | | " "" ##????############""""""##?????????? | | ####### ##??????????????## """" ##?????????? | | ??######### ###??????????????##########?????????? | | ????????### ###??????????????##########?????????? | | ?????????## ##??????????????????????????????????? | | ?????????## ##??????????????????????????????????? | | ?????????## ##??????????????????????????????????? | | ?????????## ##??????????????????????????????????? | | ?????????## ##???#####??????????????????????????? | | ?????????## ###################?????????????????? | | ?????????## ####### ###########?????????????????? | | ?????????## """T""" ""?????????????????? | | ?????????## """ """ "??????????????????? | | ?????????## "??????????????????? | | ?????????## w "??????????????????? | | ?????????## "" "??????????????????? | | ?????????## @" "??????????????????? | | ?????????## "??????????????????? | | ?????????## "??????????????????? | | ?????????## "??????????????????? | | ?????????## ""?????????????????? | | ?????????## ####### ###########?????????????????? | | ?????????## ###################?????????????????? | | ?????????## ?????#####??????????????????????????? | | ????????? # ????????????????????????????????????? | | ????????? # ????????????????????????????????????? | | ????????? + ????????????????????????????????????? | | ????????? # ????????????????????????????????????? | | ????????? # ????????????????????????????????????? | | ?????????????????????????????????????????????????? | | ?????????????????????????????????????????????????? | | ?????????????????????????????????????????????????? | | ?????????????????????????????????????????????????? | | ?????????????????????????????????????????????????? | | ?????????????????????????????????????????????????? | | ?????????????????????????????????????????????????? | | ?????????????????????????????????????????????????? | | ?????????????????????????????????????????????????? | | ?????????????????????????????????????????????????? | | ?????????????????????????????????????????????????? | | ?????????????????????????????????????????????????? | +----------------------------------------------------+ Best States ------------- Heat Dissipation 52 Energy Generation 17 Energy Capacity 300 Matter Stores 300 Matter Capacity 300 Sight Range 16 Robot Scan Range 18 Terrain Scan Density 10 Evasion (%) 64 Offensive Hacking 10 Defensive Hacking 20 Item Schematics ----------------- None Robot Schematics ------------------ None Fabricated ------------ Nothing Repaired ---------- Nothing Studied --------- None Alien Tech Used ----------------- None Achievements -------------- None Challenges ------------ None Game ------ Seed SmartbombGravitonAxe Manual? 0 Play Time 00:26:19 Cumulative 664.3 hours Start 2025.11.16 @ 09:56:03 End 2025.11.16 @ 10:28:37 Sessions 1 Manual Loads 0 Difficulty Rogue Special Mode None Game No. 285 Rogue 285 Adventurer 0 Explorer 0 Win Type 0 Total 63 Types 32/4/10/4/6/1/0/3/0/3 Lore% 96 Gallery% 89 Achievement% 78 Wizard Run 0 Options --------- Layout 1 ASCII 0 Keyboard 0 Movement Numpad Keybinds 0 Fullscreen 1 Font 24/Smallcaps Map View 50x35 Zoom Use 0% Tactical HUD 1 Map Filters NONE Filters NONE Steam 1 RUN: a0334fb7-6649-404a-94b1-978009726304